bitfinex-derivatives/quotes_SOLF0:USTF0_20220109
["timestamp","ask_amount","ask_price","bid_price","bid_amount"]
[1641720578475,27.66479,138.91,138.81,31.66479]
[1641720578676,27.66479,138.91,138.82,1.8]
[1641720578876,27.66479,138.91,138.82,7.36]
[1641720579277,4.0,138.9,138.82,7.36]
[1641720579475,27.66479,138.91,138.82,7.36]
[1641720579676,55.32958,138.91,138.82,7.36]
[1641720580077,70.58620078,138.91,138.82,7.36]
[1641720580978,55.32958,138.91,138.82,7.36]
[1641720581779,55.32958,138.91,138.84,27.66479]
[1641720586382,27.66479,138.91,138.84,27.66479]
[1641720586582,22.45682239,138.96,138.84,27.66479]
[1641720587181,7.20020161,138.96,138.84,27.66479]
[1641720587381,11.20020161,138.96,138.84,27.66479]
[1641720587782,2.41239985,138.95,138.84,27.66479]
[1641720587982,27.66479,138.91,138.83,65.4691]
[1641720588182,34.31279,138.91,138.83,65.4691]
[1641720588381,34.31279,138.91,138.8,15.25662078]
[1641720588582,4.0,138.89,138.8,15.25662078]
[1641720588784,4.0,138.88,138.77,81.41862078]
[1641720588984,9.789,138.88,138.77,81.41862078]
[1641720589584,6.41418289,138.87,138.77,66.162]
[1641720589788,4.0,138.82,138.75,35.84]
[1641720589986,27.66479,138.81,138.74,7.20357297]
[1641720590587,27.66479,138.81,138.75,2.66402185]
[1641720590788,4.0,138.77,138.72,25.74775135]
[1641720590988,5.964,138.77,138.72,25.74775135]
[1641720591689,5.964,138.77,138.72,15.25662078]
[1641720591989,27.66479,138.74,138.67,42.92141078]
[1641720592589,27.66479,138.74,138.67,46.92141078]
[1641720592789,27.66479,138.74,138.67,42.92141078]
[1641720592990,27.66479,138.74,138.67,27.66479]
[1641720593191,4.0,138.84,138.67,33.46679]
[1641720593389,4.0,138.84,138.69,7.20616848]
[1641720593590,19.25662078,138.83,138.69,7.20616848]
[1641720593790,4.0,138.83,138.69,22.46278926]
[1641720593992,27.66479,138.79,138.7,27.66479]
[1641720594190,27.66479,138.79,138.7,35.72579]
[1641720594591,27.66479,138.79,138.7,61.46684218]
[1641720594792,27.66479,138.79,138.7,65.46684218]
[1641720595491,27.66479,138.79,138.72,7.20487049]
[1641720595891,27.66479,138.79,138.7,63.98931963]
[1641720596093,27.66479,138.79,138.7,62.18831963]
[1641720596896,27.66479,138.79,138.7,58.18831963]
[1641720597196,27.66479,138.79,138.7,63.98931963]
[1641720597395,27.66479,138.79,138.7,62.18831963]
[1641720597797,27.66479,138.79,138.72,7.20461095]
[1641720597997,27.66479,138.79,138.73,1.801]
[1641720598197,27.66479,138.79,138.72,7.20461095]
[1641720599000,27.66479,138.79,138.71,27.53348007]
[1641720599199,27.66479,138.79,138.71,25.73248007]
[1641720599400,27.66479,138.79,138.71,15.25662078]
[1641720599599,27.66479,138.79,138.7,62.53522923]
[1641720601203,27.66479,138.79,138.7,59.32958]
[1641720601404,27.66479,138.79,138.7,66.53522923]
[1641720601706,27.66479,138.79,138.7,62.53522923]
[1641720603103,27.66479,138.79,138.7,55.32958]
[1641720603304,15.25662078,138.86,138.75,7.20331352]
[1641720603505,69.8603,138.87,138.75,7.20331352]
[1641720603904,69.8603,138.87,138.72,17.05762078]
[1641720603905,7.20564923,138.86,138.72,17.05762078]
[1641720604208,31.66479,138.8,138.72,15.25662078]
[1641720604405,4.0,138.79,138.71,15.25662078]
[1641720604805,4.0,138.78,138.71,15.25662078]
[1641720605306,4.0,138.78,138.66,155.94682078]
[1641720605504,4.0,138.76,138.66,151.94682078]
[1641720605705,12.89,138.76,138.66,15.25662078]
[1641720605905,4.0,138.74,138.66,15.25662078]
[1641720606106,27.66479,138.69,138.66,15.25662078]
[1641720606307,34.72179,138.69,138.65,15.25662078]
[1641720606512,38.72179,138.69,138.65,15.25662078]
[1641720607708,4.0,138.67,138.62,40.67024013]
[1641720608111,27.66479,138.63,138.61,15.217739]
[1641720608410,34.58879,138.63,138.61,15.217739]
[1641720609008,6.924,138.63,138.61,15.217739]
[1641720609410,27.66479,138.69,138.58,40.67024013]
[1641720609609,27.66479,138.69,138.57,1.803]
[1641720609810,27.66479,138.69,138.57,9.01566544]
[1641720610010,27.66479,138.66,138.57,36.68045544]
[1641720610412,27.66479,138.66,138.57,40.68045544]
[1641720610613,27.66479,138.69,138.59,7.21136511]
[1641720610812,27.66479,138.69,138.59,12.92536511]
[1641720611212,27.66479,138.69,138.59,16.92536511]
[1641720611414,4.0,138.78,138.64,7.20876586]
[1641720611612,4.0,138.78,138.64,19.31476586]
[1641720611812,4.0,138.78,138.64,15.31476586]
[1641720612014,27.66479,138.74,138.65,27.66479]
[1641720614115,27.66479,138.76,138.67,4.0]
[1641720614315,27.66479,138.76,138.68,4.0]
[1641720614616,7.20746694,138.82,138.67,18.87446694]
[1641720614817,44.67024013,138.85,138.69,4.0]
[1641720615017,47.87640861,138.85,138.72,7.20487049]
[1641720615219,47.87640861,138.85,138.72,14.70987049]
[1641720615417,7.20616848,138.85,138.72,18.70987049]
[1641720616116,27.66479,138.84,138.75,27.66479]
[1641720616520,4.0,138.83,138.73,27.66479]
[1641720616719,4.0,138.83,138.72,7.20487049]
[1641720616918,9.771,138.83,138.72,7.20487049]
[1641720618020,27.66479,138.78,138.72,7.20487049]
[1641720622025,27.66479,138.84,138.73,27.66479]
[1641720622224,27.66479,138.84,138.73,34.42979]
[1641720622623,27.66479,138.84,138.72,1.801]
[1641720622624,4.0,138.81,138.72,1.801]
[1641720622824,18.57098645,138.81,138.7,27.66479]
[1641720623024,14.57098645,138.81,138.7,27.66479]
[1641720623226,7.363,138.81,138.7,27.66479]
[1641720623526,11.363,138.81,138.7,27.66479]
[1641720624128,27.66479,138.78,138.7,27.66479]
[1641720624525,27.66479,138.78,138.7,31.66479]
[1641720624728,27.66479,138.78,138.7,27.66479]
[1641720624932,27.66479,138.78,138.7,34.87069885]
[1641720625130,27.66479,138.78,138.7,36.67169885]
[1641720626031,80.9610475,138.83,138.7,29.46579]
[1641720626230,27.66479,138.79,138.7,27.66479]
[1641720626633,35.09579,138.79,138.69,29.46579]
[1641720626831,35.09579,138.79,138.69,27.66479]
[1641720627631,35.09579,138.79,138.69,31.66479]
[1641720627833,27.66479,138.79,138.71,4.0]
[1641720628032,27.66479,138.79,138.72,4.0]
[1641720628233,55.32958,138.79,138.73,1.801]
[1641720628433,69.7541,138.83,138.73,1.801]
[1641720628633,7.20642813,138.84,138.73,1.801]
[1641720629233,7.20642813,138.84,138.71,5.801]
[1641720629433,7.20642813,138.84,138.71,4.0]
[1641720630038,13.92642813,138.84,138.71,4.0]
[1641720630237,27.66479,138.79,138.72,27.66479]
[1641720630438,36.36379,138.79,138.71,4.0]
[1641720630836,43.57307556,138.79,138.7,10.49813409]
[1641720631037,47.57307556,138.79,138.7,10.49813409]
[1641720631237,7.21058514,138.76,138.65,42.47124013]
[1641720631437,19.28758514,138.76,138.65,40.67024013]
[1641720631836,15.28758514,138.76,138.65,40.67024013]
[1641720632241,27.66479,138.72,138.64,95.38899]
[1641720633745,27.66479,138.72,138.65,10.5037566]
[1641720634045,27.66479,138.72,138.65,18.6157566]
[1641720634445,27.66479,138.74,138.66,4.0]
[1641720634644,4.0,138.83,138.68,7.20668781]
[1641720634845,107.23424013,138.82,138.68,15.48168781]
[1641720635045,107.23424013,138.82,138.68,17.28268781]
[1641720635245,107.23424013,138.82,138.68,21.28268781]
[1641720635445,107.23424013,138.82,138.69,4.0]
[1641720635645,66.564,138.82,138.7,4.0]
[1641720635845,7.20668781,138.84,138.71,4.0]
[1641720636045,7.20668781,138.84,138.72,1.801]
[1641720636247,34.87147781,138.84,138.74,27.66479]
[1641720636446,34.87147781,138.84,138.74,35.69679]
[1641720636646,2.42019326,138.83,138.74,35.69679]
[1641720638349,27.66479,138.81,138.74,35.69679]
[1641720639749,27.66479,138.81,138.74,27.66479]
[1641720641251,42.92743885,138.84,138.75,4.0]
[1641720641450,42.92743885,138.84,138.75,7.564]
[1641720641651,27.66479,138.84,138.75,7.564]
[1641720643858,2.42422365,138.83,138.75,9.365]
[1641720644958,2.42422365,138.83,138.75,13.365]
[1641720645561,2.42422365,138.83,138.76,4.0]
[1641720645760,2.42422365,138.83,138.77,1.801]
[1641720645960,2.42422365,138.83,138.78,4.0]
[1641720646160,27.66479,138.86,138.78,7.467]
[1641720646361,27.66479,138.86,138.78,9.267]
[1641720647161,27.66479,138.86,138.78,7.467]
[1641720650270,2.42141281,138.85,138.78,7.467]
[1641720650470,2.42141281,138.85,138.78,11.467]
[1641720650672,2.42141281,138.85,138.8,5.76365045]
[1641720650869,1.281e-05,138.85,138.81,1.8]
[1641720651070,15.26264885,138.88,138.81,11.543]
[1641720651275,15.26264885,138.9,138.83,5.76240465]
[1641720651471,15.26264885,138.9,138.84,1.8]
[1641720651671,15.26264885,138.9,138.84,8.424]
[1641720652173,22.46414676,138.94,138.84,8.424]
[1641720652373,50.12893676,138.94,138.84,40.08879]
[1641720652873,50.12893676,138.94,138.84,36.08879]
[1641720653074,50.12893676,138.94,138.84,40.08879]
[1641720653276,34.86628791,138.94,138.84,40.08879]
[1641720653674,34.86628791,138.94,138.84,36.08879]
[1641720654876,27.66479,138.94,138.84,40.08879]
[1641720655676,27.66479,138.94,138.84,36.08879]
[1641720656477,27.66479,138.91,138.84,34.28879]
[1641720661683,27.66479,138.91,138.8,70.4134]
[1641720662083,31.66479,138.91,138.8,70.4134]
[1641720662284,4.0,138.88,138.77,68.981]
[1641720662483,39.61279,138.88,138.79,27.66479]
[1641720664088,35.61279,138.88,138.79,27.66479]
[1641720668591,63.27758,138.88,138.79,27.66479]
[1641720669793,78.54022885,138.88,138.79,27.66479]
[1641720671794,15.26264885,138.87,138.79,27.66479]
[1641720672195,15.26264885,138.87,138.77,94.84579]
[1641720672394,21.93564885,138.87,138.77,94.84579]
[1641720672596,6.673,138.87,138.77,94.84579]
[1641720673296,21.93564885,138.87,138.77,94.84579]
[1641720675200,6.673,138.87,138.77,94.84579]
[1641720675399,70.59222885,138.88,138.77,94.84579]
[1641720675599,7.445,138.87,138.77,94.84579]
[1641720676099,22.70764885,138.87,138.77,94.84579]
[1641720676599,22.70764885,138.87,138.77,27.66479]
[1641720676801,27.66479,138.84,138.77,27.66479]
[1641720678803,15.26264885,138.87,138.8,27.66479]
[1641720679002,27.66479,138.88,138.8,27.66479]
[1641720679003,15.26264885,138.88,138.81,7.1999424]
[1641720679203,15.26264885,138.88,138.8,34.17679]
[1641720679204,40.67024013,138.91,138.8,38.17679]
[1641720679403,27.93288898,138.91,138.84,7.19838756]
[1641720679603,27.93288898,138.91,138.84,15.17338756]
[1641720680005,73.5497,138.94,138.81,86.24664572]
[1641720680204,8.448,138.91,138.81,78.68350478]
[1641720680903,36.11279,138.91,138.81,78.68350478]
[1641720681105,36.11279,138.91,138.81,68.1775]
[1641720687007,27.66479,138.93,138.83,27.66479]
[1641720687207,27.66479,138.93,138.84,1.8]
[1641720687406,27.66479,138.93,138.84,10.105]
[1641720687607,27.66479,138.93,138.84,8.305]
[1641720688407,27.66479,138.93,138.83,39.98839041]
[1641720688607,27.66479,138.93,138.83,27.66479]
[1641720689007,55.32958,138.93,138.83,27.66479]
[1641720689807,55.32958,138.93,138.84,4.0]
[1641720690109,55.32958,138.93,138.85,1.8]
[1641720690307,27.66479,138.93,138.85,1.8]
[1641720690507,76.11502405,138.98,138.85,7.56131366]
[1641720690907,27.66479,138.95,138.85,7.56131366]
[1641720691108,27.66479,138.95,138.85,5.76131366]
[1641720691510,2.41911312,138.94,138.84,1.799]
[1641720692814,2.41911312,138.94,138.84,5.799]
[1641720693011,2.41911312,138.94,138.87,27.66479]
[1641720693213,2.41911312,138.94,138.87,33.70179]
[1641720693413,2.41911312,138.94,138.87,6.037]
[1641720694311,2.41911312,138.94,138.84,5.799]
[1641720694312,2.41911312,138.94,138.84,1.799]
[1641720694912,2.41911312,138.94,138.86,27.66479]
[1641720695513,2.41911312,138.94,138.86,35.07179]
[1641720696716,2.41911312,138.94,138.87,1.799]
[1641720697916,27.66479,138.95,138.87,1.799]
[1641720699416,27.66479,138.95,138.86,27.66479]
[1641720699616,35.09479,138.95,138.86,27.66479]
[1641720701516,27.66479,138.95,138.86,27.66479]
[1641720703422,2.41666023,138.94,138.86,27.66479]
[1641720707624,2.41666023,138.94,138.85,5.76138596]
[1641720708324,2.41666023,138.94,138.84,12.31732515]
[1641720708524,2.41666023,138.94,138.84,10.51832515]
[1641720709125,2.41666023,138.94,138.83,98.43729]
[1641720709324,27.66479,138.92,138.83,96.63829]
[1641720709724,2.41666023,138.94,138.83,96.63829]
[1641720709924,2.41666023,138.94,138.84,1.8]
[1641720710125,2.41666023,138.94,138.83,103.66329]
[1641720710326,2.41666023,138.91,138.83,118.95272607]
[1641720710928,15.28943607,138.93,138.83,118.95272607]
[1641720711127,15.28943607,138.93,138.83,49.97922607]
[1641720711328,15.28943607,138.93,138.83,42.95422607]
[1641720711329,27.66479,138.91,138.83,42.95422607]
[1641720711727,31.66479,138.91,138.83,42.95422607]
[1641720712128,27.66479,138.91,138.83,15.28943607]
[1641720712929,2.41666023,138.9,138.81,175.92842607]
[1641720713129,2.41666023,138.9,138.82,1.8]
[1641720713729,2.41666023,138.9,138.82,27.62740989]
[1641720715133,2.41666023,138.9,138.83,15.28943607]
[1641720715734,2.41666023,138.9,138.83,21.35543607]
[1641720718638,2.41666023,138.9,138.84,15.28943607]
[1641720719442,2.41666023,138.9,138.84,19.28943607]
[1641720719741,2.41666023,138.9,138.84,15.28943607]
[1641720720241,2.41666023,138.92,138.86,15.28943607]
[1641720720443,2.41666023,138.92,138.86,21.59843607]
[1641720721044,17.7060963,138.94,138.86,6.309]
[1641720721242,17.7060963,138.94,138.87,1.799]
[1641720721542,17.7060963,138.94,138.87,29.46379]
[1641720721743,2.41666023,138.94,138.87,44.75322607]
[1641720721944,2.41666023,138.94,138.87,48.75322607]
[1641720722243,2.41666023,138.94,138.87,44.75322607]
[1641720722944,2.41666023,138.95,138.88,25.82740989]
[1641720723743,2.41666023,138.95,138.87,29.46379]
[1641720723744,2.41666023,138.95,138.87,44.75322607]
[1641720723943,2.41666023,138.95,138.88,7.19631549]
[1641720724947,17.7060963,138.98,138.88,33.01801955]
[1641720725848,15.28943607,138.97,138.88,7.19631549]
[1641720726747,17.7060963,138.98,138.88,33.01271674]
[1641720728147,17.7060963,138.98,138.88,7.19631549]
[1641720729451,2.41666023,138.98,138.88,33.00828425]
[1641720729651,2.41666023,138.98,138.89,1.799]
[1641720730753,17.7060963,138.98,138.89,1.799]
[1641720731657,17.7060963,138.98,138.9,27.66479]
[1641720731955,17.7060963,138.98,138.9,31.66479]
[1641720732156,2.41666023,138.98,138.9,37.42405949]
[1641720732358,2.41666023,138.98,138.93,12.95181106]
[1641720732559,2.41666023,138.98,138.94,1.799]
[1641720732957,2.41666023,138.98,138.94,5.799]
[1641720733157,15.28943607,139.02,138.95,5.75731658]
[1641720733357,15.28943607,139.02,138.96,8.99043356]
[1641720733557,15.28943607,139.02,138.99,27.66479]
[1641720733758,15.28943607,139.02,138.99,35.77979]
[1641720734057,15.2524354,139.06,138.99,35.77979]
[1641720734660,40.63664314,139.09,139.03,4.0]
[1641720734859,40.63664314,139.09,139.05,7.18778077]
[1641720735061,40.63664314,139.09,139.05,11.18778077]
[1641720735557,40.63664314,139.09,139.06,34.85205417]
[1641720735759,40.63664314,139.13,139.06,46.63905417]
[1641720735960,40.63664314,139.13,139.06,52.3917628]
[1641720736559,40.63664314,139.13,139.07,4.0]
[1641720736760,40.63664314,139.13,139.07,5.797]
[1641720737361,67.6797,139.17,139.07,5.797]
[1641720738865,27.66479,139.2,139.1,4.0]
[1641720739066,27.66479,139.2,139.11,1.796]
[1641720739466,27.66479,139.2,139.11,8.98042417]
[1641720740466,27.66479,139.2,139.11,7.18442417]
[1641720741969,27.66479,139.2,139.11,15.68142417]
[1641720744370,27.66479,139.2,139.11,19.68142417]
[1641720744570,27.66479,139.2,139.11,15.68142417]
[1641720747678,27.66479,139.2,139.13,7.18365001]
[1641720748076,98.48709,139.24,139.13,7.18365001]
[1641720748279,98.48709,139.24,139.14,1.796]
[1641720748477,98.48709,139.24,139.14,14.21335668]
[1641720748678,27.66479,139.24,139.14,14.21335668]
[1641720748879,71.2117,139.31,139.18,7.1810707]
[1641720749077,4.0,139.25,139.17,8.97658641]
[1641720749277,4.0,139.24,139.13,1.795]
[1641720749477,7.225,139.25,139.13,7.183392]
[1641720749678,27.66479,139.18,139.13,7.183392]
[1641720750078,27.66479,139.2,139.13,7.183392]
[1641720751782,96.02579,139.24,139.16,7.1818443]
[1641720751981,27.66479,139.24,139.16,9.109]
[1641720753484,27.66479,139.24,139.17,7.18158641]
[1641720754885,68.7524,139.27,139.17,8.97658641]
[1641720756088,68.7524,139.27,139.17,7.18158641]
[1641720757089,27.66479,139.28,139.17,7.18158641]
[1641720757490,31.66479,139.28,139.17,7.18158641]
[1641720757689,27.66479,139.25,139.17,7.18158641]
[1641720758891,27.66479,139.28,139.2,7.17978173]
[1641720759092,27.66479,139.28,139.2,13.90178173]
[1641720760293,27.66479,139.28,139.18,68.3452]
[1641720760494,27.66479,139.28,139.17,1.795]
[1641720760694,27.66479,139.28,139.16,62.5116822]
[1641720760695,27.66479,139.28,139.16,64.3066822]
[1641720760893,27.66479,139.28,139.16,133.9679822]
[1641720761694,27.66479,139.25,139.16,133.9679822]
[1641720764396,27.66479,139.25,139.16,64.3066822]
[1641720764601,4.0,139.24,139.16,64.3066822]
[1641720764795,40.61779,139.25,139.16,55.32958]
[1641720764995,31.66479,139.25,139.16,55.32958]
[1641720765598,46.85415133,139.25,139.16,55.32958]
[1641720765795,42.85415133,139.25,139.16,55.32958]
[1641720767102,42.85415133,139.25,139.16,61.73958]
[1641720767801,42.85415133,139.25,139.17,7.18132855]
[1641720768002,42.85415133,139.25,139.17,8.97632855]
[1641720768402,27.66479,139.25,139.17,8.97632855]
[1641720770103,27.66479,139.25,139.17,7.18132855]
[1641720770504,27.66479,139.25,139.17,15.84932855]
[1641720771316,27.66479,139.25,139.17,17.64432855]
[1641720773508,27.66479,139.25,139.17,15.84932855]
[1641720773711,27.66479,139.25,139.17,7.18132855]
[1641720774308,2.41242757,139.24,139.17,7.18132855]
[1641720777411,17.6017889,139.24,139.17,7.18132855]
[1641720782316,29.6277889,139.24,139.17,7.18132855]
[1641720782515,25.6277889,139.24,139.16,27.66479]
[1641720783115,15.18936133,139.22,139.16,27.66479]
[1641720784715,15.18936133,139.23,139.16,27.66479]
[1641720785520,4.0,139.21,139.16,27.66479]
[1641720785719,4.0,139.2,139.13,42.85415133]
[1641720786021,27.66479,139.19,139.13,15.18936133]
[1641720786418,27.66479,139.19,139.12,72.6437661]
[1641720786419,27.66479,139.19,139.12,87.83312743]
[1641720788022,27.66479,139.19,139.12,72.6437661]
[1641720790626,15.18936133,139.21,139.12,72.6437661]
[1641720790826,15.18936133,139.21,139.12,81.7437661]
[1641720791528,15.18936133,139.22,139.14,7.183134]
[1641720792027,15.18936133,139.22,139.16,27.66479]
[1641720792228,15.18936133,139.22,139.17,7.18132855]
[1641720792428,28.05350951,139.25,139.18,1.796]
[1641720792628,15.26122128,139.25,139.19,7.18029726]
[1641720792828,15.26122128,139.25,139.2,1.795]
[1641720793529,64.8085,139.3,139.2,1.795]
[1641720793729,68.8085,139.3,139.2,1.795]
[1641720793933,64.8085,139.3,139.19,15.09729726]
[1641720794132,27.66479,139.29,139.19,42.76208726]
[1641720795232,37.48537452,139.29,139.19,42.76208726]
[1641720795434,37.48537452,139.29,139.19,40.96708726]
[1641720796133,37.48537452,139.29,139.19,107.81918726]
[1641720796541,37.48537452,139.29,139.2,1.795]
[1641720796740,64.8085,139.3,139.22,7.17900858]
[1641720796941,27.66479,139.31,139.22,14.58400858]
[1641720797539,27.66479,139.31,139.23,1.795]
[1641720797940,27.66479,139.31,139.23,5.795]
[1641720798140,27.66479,139.31,139.25,27.66479]
[1641720798340,27.66479,139.31,139.25,34.53879]
[1641720798542,27.66479,139.31,139.25,41.7159952]
[1641720798742,27.66479,139.31,139.26,1.794]
[1641720799744,27.66479,139.31,139.25,41.7159952]
[1641720801744,27.66479,139.31,139.25,34.8419952]
[1641720806949,27.66479,139.31,139.23,27.66479]
[1641720807151,4.0,139.29,139.2,10.7]
[1641720807351,12.65,139.29,139.2,10.7]
[1641720807749,8.65,139.29,139.2,10.7]
[1641720808350,8.65,139.29,139.22,7.1787509]
[1641720808552,27.66479,139.31,139.22,7.1787509]
[1641720808950,27.66479,139.31,139.22,15.9347509]
[1641720809350,27.66479,139.31,139.23,5.74586379]
[1641720809550,27.66479,139.31,139.24,1.795]
[1641720810251,27.66479,139.31,139.24,29.45979]
[1641720810752,27.66479,139.31,139.24,27.66479]
[1641720812354,27.66479,139.31,139.25,7.1772052]
[1641720812651,27.66479,139.31,139.25,16.2572052]
[1641720813652,27.66479,139.31,139.25,18.0512052]
[1641720814655,27.66479,139.31,139.25,16.2572052]
[1641720818959,27.66479,139.31,139.26,1.794]
[1641720819360,40.4316943,139.4,139.28,7.17566016]
[1641720819561,106.1210943,139.41,139.31,7.17411579]
[1641720819760,106.1210943,139.41,139.31,14.53811579]
[1641720819963,106.1210943,139.41,139.32,1.793]
[1641720820663,65.6894,139.41,139.35,27.66479]
[1641720820864,40.4316943,139.44,139.35,35.96079]
[1641720821365,108.6357943,139.45,139.35,35.96079]
[1641720821563,4.0,139.42,139.35,35.96079]
[1641720822168,4.0,139.44,139.35,35.96079]
[1641720822368,13.78262058,139.44,139.35,35.96079]
[1641720823170,15.20231884,139.42,139.35,35.96079]
[1641720823871,4.0,139.41,139.35,35.96079]
[1641720824074,4.0,139.4,139.35,27.66479]
[1641720824274,4.0,139.38,139.28,24.170979]
[1641720824475,4.0,139.38,139.28,22.377979]
[1641720824674,31.66479,139.38,139.31,27.66479]
[1641720825877,4.0,139.37,139.31,27.66479]
[1641720827177,46.86710884,139.38,139.31,27.66479]
[1641720827378,42.86710884,139.38,139.31,27.66479]
[1641720828180,27.66479,139.38,139.31,29.45879]
[1641720828580,15.20231884,139.39,139.31,29.45879]
[1641720829079,77.22261884,139.41,139.31,29.45879]
[1641720829280,77.22261884,139.41,139.31,27.66479]
[1641720830381,77.22261884,139.41,139.33,7.17308658]
[1641720830583,77.22261884,139.41,139.34,27.66479]
[1641720830985,62.0203,139.41,139.34,27.66479]
[1641720831184,15.20231884,139.42,139.34,27.66479]
[1641720832583,15.20231884,139.41,139.34,27.66479]
[1641720833490,17.60724574,139.42,139.34,31.66479]
[1641720833687,17.60724574,139.42,139.36,7.17154332]
[1641720833885,17.60724574,139.42,139.36,15.96554332]
[1641720834587,15.20231884,139.45,139.36,15.96554332]
[1641720834787,15.20231884,139.45,139.4,27.66479]
[1641720834989,15.20231884,139.45,139.4,35.25779]
[1641720835590,2.4049269,139.45,139.4,35.25779]
[1641720836489,2.4049269,139.46,139.4,35.25779]
[1641720837490,60.5823,139.47,139.4,35.25779]
[1641720837896,15.20231884,139.49,139.42,7.16845878]
[1641720838100,15.20231884,139.49,139.46,7.16666069]
[1641720838398,15.20231884,139.49,139.46,14.29266069]
[1641720838597,40.4316943,139.52,139.46,14.29266069]
[1641720838598,42.82987943,139.52,139.46,14.29266069]
[1641720838796,2.39818513,139.52,139.47,27.66479]
[1641720839798,2.39818513,139.54,139.47,27.66479]
[1641720840599,6.39818513,139.54,139.47,27.66479]
[1641720840998,4.0,139.54,139.47,27.66479]
[1641720841397,71.64391884,139.57,139.47,27.66479]
[1641720841398,4.0,139.55,139.47,27.66479]
[1641720841600,4.0,139.54,139.47,27.66479]
[1641720841799,6.39329762,139.54,139.47,27.66479]
[1641720842997,15.20231884,139.56,139.47,27.66479]
[1641720843199,71.64391884,139.57,139.47,27.66479]
[1641720843799,2.39011254,139.56,139.47,27.66479]
[1641720843999,2.39011254,139.56,139.47,29.45579]
[1641720844601,75.64391884,139.57,139.47,29.45579]
[1641720844801,60.4416,139.57,139.47,27.66479]
[1641720845601,56.4416,139.57,139.47,27.66479]
[1641720845801,60.4416,139.57,139.47,27.66479]
[1641720846103,4.0,139.56,139.47,27.66479]
[1641720846302,4.0,139.54,139.47,27.66479]
[1641720846503,4.0,139.56,139.47,27.66479]
[1641720846701,4.0,139.54,139.47,27.66479]
[1641720846903,27.66479,139.54,139.47,27.66479]
[1641720847103,4.0,139.54,139.47,27.66479]
[1641720847607,4.0,139.53,139.47,27.66479]
[1641720847805,4.0,139.52,139.45,27.66479]
[1641720848007,4.0,139.5,139.42,1.792]
[1641720848204,4.0,139.49,139.4,28.67280742]
[1641720848405,4.0,139.48,139.37,15.20231884]
[1641720848607,13.358,139.49,139.35,66.18681486]
[1641720848804,27.66479,139.47,139.37,27.66479]
[1641720849406,27.66479,139.47,139.38,7.17051484]
[1641720849605,27.66479,139.47,139.38,14.72451484]
[1641720850404,4.0,139.49,139.38,14.72451484]
[1641720850805,84.77379,139.5,139.41,27.66479]
[1641720851007,84.77379,139.5,139.42,7.16871572]
[1641720851609,57.109,139.5,139.42,7.16871572]
[1641720851807,57.4779,139.53,139.42,7.16871572]
[1641720852008,118.8625,139.53,139.42,68.72651572]
[1641720852407,122.8625,139.53,139.42,68.72651572]
[1641720852809,122.8625,139.53,139.45,27.66479]
[1641720853009,4.0,139.53,139.45,35.12979]
[1641720853309,31.66479,139.54,139.45,35.12979]
[1641720853810,4.0,139.53,139.45,35.12979]
[1641720857314,31.66479,139.54,139.45,35.12979]
[1641720857715,2.39390595,139.52,139.45,35.12979]
[1641720858614,2.39390595,139.53,139.45,35.12979]
[1641720859923,21.59622479,139.53,139.45,35.12979]
[1641720860518,2.39390595,139.52,139.45,35.12979]
[1641720860718,2.39390595,139.52,139.45,27.66479]
[1641720861119,6.39390595,139.52,139.41,27.66479]
[1641720861319,64.92810595,139.52,139.41,27.66479]
[1641720861518,4.0,139.51,139.41,27.66479]
[1641720862217,2.39390595,139.5,139.41,27.66479]
[1641720863018,2.39390595,139.51,139.41,27.66479]
[1641720863219,2.39390595,139.51,139.44,27.66479]
[1641720863518,2.39390595,139.51,139.44,35.24679]
[1641720863818,17.59622479,139.51,139.44,35.24679]
[1641720865524,17.59622479,139.51,139.44,27.66479]
[1641720867726,15.20231884,139.5,139.44,27.66479]
[1641720869327,15.20231884,139.49,139.44,27.66479]
[1641720873528,17.59622479,139.49,139.44,27.66479]